[Event "FIDE WCCC U10 2018"]
[Site "Santiago de Compostela"]
[Date "2018.11.15"]
[Round "11"]
[White "Zhong, Kevin"]
[Black "Anand, Batsukh"]
[Result "1/2-1/2"]
[ECO "B42"]
[WhiteElo "2038"]
[BlackElo "1746"]
[Annotator "NA"]
[PlyCount "102"]
[EventDate "2018.11.04"]
[EventType "swiss"]
[EventCountry "ESP"]
[SourceTitle "playchess.com"]
[Source "ChessBase"]
[SourceQuality "1"]
[TimeControl "40/5400+30:1800+30"]

1. e4 {[%emt 0:00:00]} c5 {[%emt 0:01:28]} 2. Ne2 {[%emt 0:00:00]} e6 {[%emt 0:01:32]} 3. d4 {[%emt 0:00:00]} cxd4 {[%emt 0:01:27]} 4. Nxd4 {[%emt 0:00:00]} a6 {[%emt 0:01:28]} 5. Bd3 {[%emt 0:00:00]} Nf6 {[%emt 0:01:28]} 6. O-O Qc7 {[%emt 0:01:35]} 7. Qe2 {[%emt 0:00:00]} d6 {[%emt 0:01:32]} 8. c4 {[%emt 0:00:00]} Nbd7 {[%emt 0:01:35]} 9. Nc3 {[%emt 0:01:21] B42: Sicilian: Kan Variation: 5 Bd3} g6 {[%emt 0:01:20]} 10. h3 {[%emt 0:02:55]} Bg7 {[%emt 0:01:45]} 11. Rd1 {[%emt 0:02:04]} O-O {[%emt 0:01:24]} 12. Nf3 {[%emt 0:01:00]} b6 {[%emt 0:02:24]} 13. Bf4 {[%emt 0:02:29] LiveBook: 25 Games} e5 $146 {[%emt 0:05:17]} ({Predecessor:} 13... Nh5 14. Bg5 h6 15. Be3 Ne5 16. Rac1 Bb7 17. Nxe5 dxe5 {1-0 (46) De Vreugt,D (2350)-Podzielny,K (2500) Germany 1999}) 14. Be3 {[%emt 0:03:16]} Bb7 {[%emt 0:02:45]} 15. Nd5 {[%emt 0:02:55]} Nxd5 {[%emt 0:03:47]} 16. cxd5 {[%emt 0:01:21]} Nc5 {[%emt 0:04:12]} 17. Rac1 {[%emt 0:02:09]} Qe7 {[%emt 0:04:13]} 18. b4 {[%emt 0:02:30]} Nxd3 {[%emt 0:01:03]} 19. Qxd3 {[%emt 0:02:04]} b5 {[%emt 0:00:30]} 20. Nd2 {[%emt 0:01:56]} Rac8 {[%emt 0:04:09]} 21. Nb3 {[%emt 0:05:08]} f5 {[%emt 0:03:40]} 22. f3 {[%emt 0:01:23]} f4 {[%emt 0:01:05]} 23. Bf2 {[%emt 0:00:02]} h5 {[%emt 0:02:02]} 24. Na5 {[%emt 0:00:54]} Rxc1 {[%emt 0:04:04]} 25. Rxc1 {[%emt 0:00:37]} Rc8 {[%emt 0:02:17]} 26. Rxc8+ {[%emt 0:04:50]} Bxc8 {[%emt 0:00:06]} 27. Qc3 {[%emt 0:00:09]} Qd7 {[%emt 0:01:04]} 28. Bh4 {[%emt 0:09:52]} Kf7 {[%emt 0:02:46]} 29. Nc6 {[%emt 0:02:57]} Bf6 {[%emt 0:01:30]} 30. Bf2 {[%emt 0:01:28]} Bb7 {[%emt 0:00:35]} 31. Na5 {[%emt 0:07:41]} Qc8 {[%emt 0:01:10]} 32. Nc6 {[%emt 0:13:04]} Qd7 {[%emt 0:00:22]} 33. Qb3 {[%emt 0:01:10]} Kg7 {[%emt 0:01:21]} 34. Na5 {[%emt 0:02:36]} Bd8 {[%emt 0:02:39]} 35. Nxb7 {[%emt 0:09:37]} Qxb7 {[%emt 0:00:09]} 36. a4 {[%emt 0:00:29]} bxa4 {[%emt 0:00:40]} 37. Qxa4 {[%emt 0:00:02]} Qb5 {[%emt 0:00:26]} 38. Qc2 {[%emt 0:03:16]} Qb7 {[%emt 0:03:35]} 39. Qc4 {[%emt 0:00:33]} Kf7 {[%emt 0:01:34]} 40. Be1 {[%emt 0:00:00]} Kg7 {[%emt 0:00:00]} 41. Bf2 {[%emt 0:09:30]} Kf7 {[%emt 0:00:45]} 42. Kh2 {[%emt 0:00:37]} h4 {[%emt 0:01:28]} 43. Kh1 {[%emt 0:00:08]} g5 {[%emt 0:00:41]} 44. Kg1 {[%emt 0:00:14]} Kg7 {[%emt 0:00:16]} 45. Be1 {[%emt 0:07:19]} Kf7 {[%emt 0:00:31]} 46. Qd3 $11 {[%emt 0:01:30]} Bb6+ {[%emt 0:00:41]} 47. Kf1 {[%emt 0:01:28]} Bd4 {[%emt 0:01:09]} 48. Bc3 {[%emt 0:01:59]} Ba7 {[%emt 0:00:27]} 49. Ke2 {[%emt 0:07:35]} Qb6 50. Qc4 Qf2+ 51. Kd1 Qe3 1/2-1/2

[Event "FIDE WCCC U10 2018"]
[Site "Santiago de Compostela"]
[Date "2018.11.15"]
[Round "11"]
[White "Materia, Marco"]
[Black "Seemann, Jakub"]
[Result "0-1"]
[ECO "B22"]
[WhiteElo "2035"]
[BlackElo "1869"]
[Annotator "NA"]
[PlyCount "160"]
[EventDate "2018.11.04"]
[EventType "swiss"]
[EventCountry "ESP"]
[SourceTitle "playchess.com"]
[Source "ChessBase"]
[SourceQuality "1"]
[TimeControl "40/5400+30:1800+30"]

1. e4 {[%emt 0:00:00]} c5 {[%emt 0:00:00]} 2. c3 {[%emt 0:00:00]} d5 {[%emt 0:00:00]} 3. exd5 {[%emt 0:00:00]} Qxd5 {[%emt 0:00:00]} 4. d4 {[%emt 0:00:00]} Nf6 {[%emt 0:00:03]} 5. Nf3 {[%emt 0:00:06]} e6 {[%emt 0:00:10]} 6. Na3 {[%emt 0:00:09]} Nc6 {[%emt 0:00:07]} 7. Be3 {[%emt 0:00:11]} cxd4 {[%emt 0:00:38] B22: Sicilian: 2 c3} 8. Nb5 $1 {[%emt 0:00:24]} Qd8 {[%emt 0:00:34]} 9. Nbxd4 {[%emt 0:00:06]} Nd5 {[%emt 0:00:22]} 10. Bg5 $146 {[%emt 0:00:05]} (10. Nxc6 bxc6 11. Bd2 Qb6 12. Ne5 Qc7 13. Nc4 Be7 14. Bd3 Ba6 15. Qg4 {½-½ (55) Wang,H (2717)-Laznicka,V (2666) Ho Chi Minh City 2016}) 10... Be7 {[%emt 0:00:51]} 11. Bxe7 {[%emt 0:00:10]} Qxe7 {[%emt 0:01:50] LiveBook: 3 Games} 12. Bc4 {[%emt 0:00:34]} Nb6 13. Bb5 {[%emt 0:02:11]} Bd7 {[%emt 0:02:13]} 14. O-O {[%emt 0:00:43]} Nxd4 {[%emt 0:00:57]} 15. Nxd4 {[%emt 0:00:37]} O-O {[%emt 0:01:07]} 16. Bd3 {[%emt 0:01:37]} Nd5 {[%emt 0:02:11]} 17. Re1 {[%emt 0:02:51]} Qf6 {[%emt 0:10:51]} 18. Be4 {[%emt 0:06:30]} Nf4 {[%emt 0:04:49]} 19. Qc2 {[%emt 0:02:58]} Qg5 {[%emt 0:13:38]} 20. Bxh7+ {[%emt 0:07:40]} Kh8 {[%emt 0:01:00]} 21. Be4 {[%emt 0:00:21]} Rad8 {[%emt 0:19:32]} 22. Kh1 {[%emt 0:17:00]} e5 {[%emt 0:07:21]} 23. Ne2 {[%emt 0:01:53]} f5 {[%emt 0:02:12] [#]} 24. Bxb7 {[%emt 0:03:22]} (24. Nxf4 $1 $16 fxe4 25. Nd5) 24... Bc8 {[%emt 0:00:24]} 25. Bc6 {[%emt 0:05:38]} Nd3 {[%emt 0:02:13]} 26. Rf1 Rf6 {[%emt 0:05:39]} 27. f4 {[%emt 0:05:36]} Qg6 {[%emt 0:01:59]} 28. Rad1 {[%emt 0:02:51]} Ba6 {[%emt 0:01:28]} 29. Ba4 {[%emt 0:14:32]} Rfd6 {[%emt 0:02:02]} 30. fxe5 {[%emt 0:07:18]} Nf2+ $1 {[%emt 0:01:02]} 31. Rxf2 {[%emt 0:00:28]} Rxd1+ {[%emt 0:00:05]} 32. Qxd1 {[%emt 0:02:05]} Rxd1+ {[%emt 0:00:05]} 33. Bxd1 {[%emt 0:00:06]} Qe6 {[%emt 0:00:34]} 34. Nf4 {[%emt 0:00:20]} Qxa2 {[%emt 0:00:36]} 35. e6 {[%emt 0:01:22]} g5 {[%emt 0:01:10]} 36. e7 {[%emt 0:03:24]} Bb5 {[%emt 0:00:45]} 37. Be2 {[%emt 0:01:37]} Be8 {[%emt 0:01:18]} 38. Nh3 {[%emt 0:01:13]} Qe6 {[%emt 0:04:44]} (38... Qxb2 $17 39. Bf1 Qxc3 40. Rxf5 Qe1 41. Nxg5 Kg7) 39. Nxg5 {[%emt 0:00:16]} Qe3 {[%emt 0:00:38]} 40. Nh3 {[%emt 0:00:00]} Qxe7 {[%emt 0:00:00]} 41. Nf4 {[%emt 0:01:11]} Qe3 {[%emt 0:01:11]} 42. Kg1 {[%emt 0:02:49]} Qc1+ {[%emt 0:00:35]} 43. Bf1 {[%emt 0:00:38]} Bb5 {[%emt 0:00:32]} 44. Ne2 {[%emt 0:00:08]} Qe3 {[%emt 0:01:12]} (44... Qa1 $15) 45. Ng3 {[%emt 0:00:31]} Bd7 {[%emt 0:01:51]} 46. Nh5 {[%emt 0:01:46]} Be6 {[%emt 0:01:02]} 47. Nf4 {[%emt 0:00:44]} Bf7 {[%emt 0:00:47]} 48. g3 {[%emt 0:00:35]} Be8 {[%emt 0:00:42]} 49. Bh3 {[%emt 0:02:04]} Qc1+ {[%emt 0:00:26]} 50. Bf1 {[%emt 0:00:20]} Bb5 {[%emt 0:00:33]} 51. Ne2 {[%emt 0:00:05]} Qe3 {[%emt 0:00:33]} 52. Nd4 {[%emt 0:00:15]} Bd7 $1 {[%emt 0:00:35]} 53. Bh3 {[%emt 0:00:45]} Qe1+ {[%emt 0:00:07]} 54. Kg2 {[%emt 0:01:06]} Qe4+ {[%emt 0:00:14]} 55. Kg1 {[%emt 0:01:08]} Qe1+ {[%emt 0:00:36]} 56. Kg2 {[%emt 0:01:33]} Qe4+ {[%emt 0:00:05]} 57. Rf3 {[%emt 0:01:12]} Qb1 {[%emt 0:00:59]} 58. Rf2 {[%emt 0:01:13]} Qe4+ {[%emt 0:01:27]} 59. Kg1 {[%emt 0:02:22]} Qe1+ {[%emt 0:00:06]} 60. Rf1 {[%emt 0:01:26]} Qe3+ {[%emt 0:00:13]} 61. Kh1 {[%emt 0:01:07]} Qd3 {[%emt 0:01:56]} 62. Re1 {[%emt 0:05:58]} Qd2 {[%emt 0:01:10]} 63. Re2 {[%emt 0:01:46]} Qd3 {[%emt 0:01:45]} 64. Kg1 {[%emt 0:00:55]} a5 {[%emt 0:03:54]} 65. Bf1 {[%emt 0:01:36]} Qb1 {[%emt 0:00:34]} 66. Re7 {[%emt 0:00:30]} Ba4 {[%emt 0:00:42]} 67. Re5 {[%emt 0:00:33]} Qxb2 {[%emt 0:00:41]} 68. Rxa5 {[%emt 0:00:14]} Bc2 {[%emt 0:00:57]} 69. Nxc2 {[%emt 0:00:57]} Qb6+ {[%emt 0:00:19]} 70. Nd4 {[%emt 0:00:32]} Qxa5 {[%emt 0:00:05]} 71. Nb5 {[%emt 0:00:34]} (71. Ne2 $17) 71... Kg7 {[%emt 0:00:50]} 72. c4 {[%emt 0:00:05]} Qb6+ {[%emt 0:00:06]} 73. Kg2 {[%emt 0:00:08]} Qe3 {[%emt 0:01:35]} 74. h4 {[%emt 0:00:39]} Kg6 {[%emt 0:02:15]} 75. Kh2 {[%emt 0:00:37]} Kh5 {[%emt 0:01:00]} 76. Bg2 {[%emt 0:00:33]} Kg4 {[%emt 0:00:31]} 77. Bh3+ {[%emt 0:00:05]} Kf3 {[%emt 0:00:05]} 78. Bg2+ {[%emt 0:00:15]} Kf2 {[%emt 0:00:07]} 79. Bf3 {[%emt 0:00:30]} Qxf3 {[%emt 0:00:08]} 80. c5 {[%emt 0:00:09]} Qg2# {[%emt 0:00:03]} 0-1

[Event "FIDE WCCC U10 2018"]
[Site "Santiago de Compostela"]
[Date "2018.11.15"]
[Round "11"]
[White "Xue, Haowen"]
[Black "Erten, Kerem"]
[Result "0-1"]
[ECO "D71"]
[WhiteElo "2025"]
[BlackElo "1807"]
[Annotator "NA"]
[PlyCount "84"]
[EventDate "2018.11.04"]
[EventType "swiss"]
[EventCountry "ESP"]
[SourceTitle "playchess.com"]
[Source "ChessBase"]
[SourceQuality "1"]
[TimeControl "40/5400+30:1800+30"]

{[%evp 8,78,25,14,32767,32767,32767,40,77,81,85,79,79,78,106,93,102,95,89,91,98,100,65,102,96,75,74,32767,32767,26,32767,32767,32767,8,29,-22,-7,-27,32767,-13,32767,32767,32767,8,0,-7,32767,32767,32767,32767,-45,-127,-41,-271,32767,-277,32767,-259,-200,-285,-315,-313,32767,-349,-437,-356,32767,-368,32767,32767,32767,-580,-889]} 1. d4 {[%emt 0:00:00]} Nf6 {[%emt 0:00:00]} 2. c4 {[%emt 0:00:00]} g6 {[%emt 0:00:00]} 3. g3 {[%emt 0:00:00]} Bg7 {[%emt 0:00:00]} 4. Bg2 {[%emt 0:00:00]} d6 {[%emt 0:00:03]} 5. Nc3 {[%emt 0:00:15] LiveBook: 535 Games} Nc6 {[%emt 0:00:35] E61: Königsindisch (Abweichungen der Hauptvariante)} 6. Nf3 {[%emt 0:00:29]} Bg4 {[%emt 0:00:13]} 7. d5 {[%emt 0:05:30]} (7. O-O Bxf3 8. h3 Nd7 9. Bxf3 e5 10. e3 Ne7 11. d5 f5 12. e4 O-O 13. Bg2 a5 14. h4 Nf6 15. Bh3 Kh8 16. Kg2 c6 17. Bg5 h6 18. Bxf6 Rxf6 19. h5 f4 20. hxg6 Qb6 21. Qb3 {1-0 (34) Mchedlishvili,M (2590)-Cori Tello,J (2641) Linares 2017}) 7... Bxf3 8. exf3 {[%emt 0:00:16]} ({Much worse is} 8. Bxf3 Ne5 $11) 8... Nb8 {[%emt 0:01:49]} 9. O-O {[%emt 0:01:57]} O-O {[%emt 0:00:06]} 10. Be3 {[%emt 0:02:14]} Nfd7 $146 {[%emt 0:01:15]} ({Vorgänger:} 10... c5 11. dxc6 Nxc6 12. f4 Nd7 13. Rc1 Qa5 {0-1 (69) Wexler,B-Petrosian,T Buenos Aires 1964}) 11. Bd4 {[%emt 0:02:07]} a5 {[%emt 0:00:34]} 12. Bxg7 {[%emt 0:00:43]} Kxg7 {[%emt 0:00:09]} 13. Qd4+ {[%emt 0:00:14]} Kg8 {[%emt 0:00:02]} 14. Rfe1 {[%emt 0:03:35]} Na6 {[%emt 0:01:20]} 15. Re2 {[%emt 0:03:17]} Nac5 {[%emt 0:01:58]} 16. f4 {[%emt 0:02:32]} e5 {[%emt 0:01:35]} 17. Qd2 {[%emt 0:18:51]} a4 {[%emt 0:10:00]} 18. fxe5 {[%emt 0:10:14]} Nxe5 {[%emt 0:03:58]} 19. Qd4 {[%emt 0:02:05]} Qf6 {[%emt 0:00:10]} 20. Kh1 {[%emt 0:00:47]} Kg7 {[%emt 0:00:40]} 21. Ne4 {[%emt 0:06:10]} Nxe4 {[%emt 0:00:11]} 22. Rxe4 {[%emt 0:01:46]} Nd7 {[%emt 0:08:12]} 23. Qxf6+ {[%emt 0:04:20]} Kxf6 {[%emt 0:00:15]} 24. Rae1 {[%emt 0:01:37]} Ne5 {[%emt 0:02:55]} 25. Bf1 {[%emt 0:03:01]} Kg7 {[%emt 0:05:21]} 26. f4 {[%emt 0:01:18]} f5 {[%emt 0:00:20]} 27. Rxe5 {[%emt 0:10:41]} dxe5 {[%emt 0:00:16]} 28. fxe5 {[%emt 0:00:04]} Rad8 {[%emt 0:01:59]} 29. Bg2 {[%emt 0:10:55]} ({White should try} 29. Kg1 $15) 29... b6 {[%emt 0:01:21]} (29... f4 $17 30. e6 f3) 30. c5 $2 {[%emt 0:02:55]} (30. Bf3 $15) 30... bxc5 {[%emt 0:00:30]} 31. Rc1 {[%emt 0:02:04]} Rfe8 {[%emt 0:00:36]} 32. e6 {[%emt 0:01:44] [#]} c6 $1 {[%emt 0:00:22]} 33. Rxc5 {[%emt 0:00:30]} (33. dxc6 $142 Rxe6 34. Kg1) 33... cxd5 {[%emt 0:00:27]} 34. Bxd5 {[%emt 0:00:14]} Kf6 {[%emt 0:01:03]} 35. b4 {[%emt 0:01:10]} Rc8 {[%emt 0:02:28]} 36. Ra5 {[%emt 0:02:10]} Red8 {[%emt 0:00:27]} 37. Kg2 {[%emt 0:02:10]} Rc2+ {[%emt 0:00:58]} 38. Kg1 {[%emt 0:00:26]} Rb2 {[%emt 0:00:38]} 39. a3 $19 {[%emt 0:00:21]} Rc8 {[%emt 0:00:20]} 40. Rc5 {[%emt 0:00:00]} Rxc5 {[%emt 0:00:00]} 41. bxc5 {[%emt 0:00:27]} Rc2 {[%emt 0:00:34]} 42. c6 {[%emt 0:01:46]} Rc5 {[%emt 0:00:10]} 0-1

[Event "FIDE WCCC U10 2018"]
[Site "Santiago de Compostela"]
[Date "2018.11.15"]
[Round "11"]
[White "Mardov, Dimitar"]
[Black "Pham, Tran Gia Phuc"]
[Result "1-0"]
[ECO "B32"]
[WhiteElo "1985"]
[BlackElo "1736"]
[Annotator "NA"]
[PlyCount "127"]
[EventDate "2018.11.04"]
[EventType "swiss"]
[EventCountry "ESP"]
[SourceTitle "playchess.com"]
[Source "ChessBase"]
[SourceQuality "1"]
[TimeControl "40/5400+30:1800+30"]

1. e4 {[%emt 0:00:00]} c5 {[%emt 0:00:00]} 2. Nf3 {[%emt 0:00:00]} Nc6 {[%emt 0:00:00]} 3. d4 {[%emt 0:00:00]} cxd4 {[%emt 0:00:08]} 4. Nxd4 {[%emt 0:00:00]} Qb6 {[%emt 0:00:23]} 5. Nb3 {[%emt 0:02:34]} Nf6 {[%emt 0:00:23]} 6. Nc3 {[%emt 0:00:05]} e6 {[%emt 0:00:20]} 7. Qe2 {[%emt 0:01:45]} d6 (7... Bb4 $11 {remains equal.}) 8. g4 {[%emt 0:04:20] B33: Sicilian: Pelikan and Sveshnikov Variations} (8. f4 Qc7 9. Nb5 Qb8 10. g4 a6 11. N5d4 Qc7 12. Bg2 Nxd4 13. Nxd4 e5 14. Nf5 g6 15. fxe5 dxe5 {1-0 (32) Shirov,A (2673)-Ehlvest,J (2532) Puhajarve 2016}) 8... a6 {[%emt 0:03:02]} 9. g5 {[%emt 0:00:32] LiveBook: 19 Games} Nd7 {[%emt 0:00:13]} 10. Bg2 {[%emt 0:02:38]} Be7 {[%emt 0:00:18]} 11. O-O {[%emt 0:02:13]} Qc7 {[%emt 0:02:18]} 12. a4 {[%emt 0:03:41]} b6 {[%emt 0:02:09]} (12... Qd8 $11 {remains equal.}) 13. f4 {[%emt 0:01:37]} Bb7 $146 {[%emt 0:08:01]} ({Predecessor:} 13... Nc5 14. f5 Bb7 15. Be3 g6 {1-0 (32) Wedberg,T (2530)-Vasquez Schroder,R (2481) Stockholm 2003}) 14. Be3 {[%emt 0:01:53]} Nb4 {[%emt 0:02:52]} 15. Rad1 {[%emt 0:03:17]} Rc8 {[%emt 0:01:46]} 16. Qf2 {[%emt 0:08:55]} Bc6 {[%emt 0:10:18]} 17. Rd4 {[%emt 0:05:11]} d5 {[%emt 0:03:49]} 18. exd5 {[%emt 0:04:40]} Nxd5 {[%emt 0:01:31]} 19. Nxd5 {[%emt 0:00:57]} exd5 {[%emt 0:00:54]} 20. Rd2 {[%emt 0:07:41]} Bxa4 {[%emt 0:01:34]} 21. Nd4 {[%emt 0:01:53]} Nc5 $2 {[%emt 0:00:42]} (21... O-O $16 22. Bxd5 Bc5) 22. Nf5 {[%emt 0:04:21]} O-O {[%emt 0:01:49]} 23. Bd4 {[%emt 0:03:45]} ({Not} 23. Rxd5 Rfe8 $11) 23... Ne6 {[%emt 0:08:24]} 24. Nxe7+ {[%emt 0:02:45]} Qxe7 {[%emt 0:00:29]} 25. Bxb6 {[%emt 0:04:58]} d4 {[%emt 0:03:17]} 26. b3 {[%emt 0:05:32]} Bb5 {[%emt 0:05:45]} 27. Re1 {[%emt 0:01:44]} Qd6 {[%emt 0:24:50]} 28. Bxd4 {[%emt 0:00:51]} Qxf4 {[%emt 0:01:44]} 29. Qxf4 {[%emt 0:05:29]} Nxf4 {[%emt 0:00:17]} 30. c4 {[%emt 0:02:43]} Bc6 {[%emt 0:00:20]} 31. Bf1 {[%emt 0:01:32]} Ne6 {[%emt 0:01:32]} 32. Be3 {[%emt 0:00:54]} Rb8 {[%emt 0:02:18]} 33. Rb2 {[%emt 0:03:57]} a5 {[%emt 0:00:17]} 34. Ra1 {[%emt 0:01:28]} Ra8 {[%emt 0:02:29]} 35. Rba2 {[%emt 0:01:30]} Rfb8 {[%emt 0:00:14]} 36. Ra3 {[%emt 0:00:56]} Rb7 {[%emt 0:02:57]} 37. Bd3 {[%emt 0:02:08]} Rab8 {[%emt 0:00:26]} 38. Bc2 {[%emt 0:00:51]} a4 {[%emt 0:00:05]} 39. bxa4 {[%emt 0:00:46]} Rb2 {[%emt 0:00:12]} 40. Rc3 {[%emt 0:00:00]} Re8 {[%emt 0:00:00]} 41. a5 {[%emt 0:11:25]} Nxg5 {[%emt 0:12:24]} 42. Bxg5 {[%emt 0:06:24]} Re2 {[%emt 0:00:14]} 43. Rd1 {[%emt 0:04:23]} f6 {[%emt 0:01:05]} 44. Rd2 {[%emt 0:04:20]} Re1+ {[%emt 0:04:36]} 45. Kf2 {[%emt 0:00:09]} Rh1 {[%emt 0:01:22]} 46. Bxh7+ {[%emt 0:05:00]} Kxh7 {[%emt 0:00:16]} 47. Rh3+ {[%emt 0:00:34]} Kg6 {[%emt 0:01:05]} 48. Rxb2 {[%emt 0:00:07]} Kxg5 {[%emt 0:00:16]} 49. Ra2 {[%emt 0:04:07]} Kg4 {[%emt 0:00:22]} 50. Rh8 {[%emt 0:00:55]} g5 {[%emt 0:02:45]} 51. a6 {[%emt 0:00:52]} Rc1 {[%emt 0:00:12]} 52. Rc8 {[%emt 0:01:30]} Be4 {[%emt 0:00:17]} 53. a7 {[%emt 0:00:44]} f5 {[%emt 0:00:19]} 54. Ke3 {[%emt 0:02:11]} Rc3+ {[%emt 0:00:51]} 55. Kd4 {[%emt 0:00:29]} Rd3+ {[%emt 0:00:14]} 56. Kc5 {[%emt 0:01:53]} f4 {[%emt 0:00:09]} 57. Rc6 {[%emt 0:00:31]} Bxc6 {[%emt 0:00:30]} 58. Kxc6 {[%emt 0:00:06]} Rd8 {[%emt 0:00:18]} 59. a8=Q {[%emt 0:00:51]} Rxa8 {[%emt 0:00:15]} 60. Rxa8 {[%emt 0:00:06]} Kf3 {[%emt 0:01:08]} 61. Kd5 {[%emt 0:00:41]} Kg2 {[%emt 0:00:12]} 62. Ke4 {[%emt 0:00:48]} f3 {[%emt 0:00:13]} 63. Ra2+ {[%emt 0:00:38]} f2 {[%emt 0:00:18]} 64. Ke3 {[%emt 0:00:16]} 1-0

[Event "FIDE WCCC U10 2018"]
[Site "Santiago de Compostela"]
[Date "2018.11.15"]
[Round "11"]
[White "Volkov, Maksim"]
[Black "Zhao, Erick"]
[Result "0-1"]
[ECO "A05"]
[WhiteElo "1971"]
[BlackElo "1957"]
[Annotator "NA"]
[PlyCount "72"]
[EventDate "2018.11.04"]
[EventType "swiss"]
[EventCountry "ESP"]
[SourceTitle "playchess.com"]
[Source "ChessBase"]
[SourceQuality "1"]
[TimeControl "40/5400+30:1800+30"]

1. Nf3 {[%emt 0:00:00]} Nf6 {[%emt 0:00:00]} 2. c4 {[%emt 0:00:00]} g6 {[%emt 0:00:00]} 3. b3 {[%emt 0:00:00]} Bg7 {[%emt 0:00:03]} 4. Bb2 {[%emt 0:00:00]} O-O {[%emt 0:00:49]} 5. g3 {[%emt 0:00:00]} d5 {[%emt 0:00:13]} 6. Bg2 {[%emt 0:00:18]} Nc6 {[%emt 0:00:08] A05: Réti Opening: 1 Nf3 Nf6} (6... c6 7. O-O Bg4 8. d3 e6 9. Nbd2 Bxf3 10. Nxf3 Nbd7 11. Qc2 Ne8 12. d4 Nd6 13. e3 Ne4 14. Ne1 f5 15. Nd3 Rf7 16. Rae1 {1-0 (75) Dubov,D (2703)-Rakhmanov,A (2634) Sochi 2018}) 7. O-O {[%emt 0:02:32]} d4 {[%emt 0:00:30]} 8. d3 {[%emt 0:05:41] LiveBook: 5 Games} a5 {[%emt 0:01:48]} 9. a3 {[%emt 0:00:59]} e5 {[%emt 0:03:26]} 10. Nbd2 {[%emt 0:03:22]} Re8 {[%emt 0:00:10]} 11. Qc2 {[%emt 0:12:50]} Nd7 {[%emt 0:05:04]} 12. Rad1 {[%emt 0:05:14]} Nc5 {[%emt 0:02:53]} 13. Ne4 {[%emt 0:00:34]} Ne6 {[%emt 0:10:41]} 14. h4 $146 {[%emt 0:03:29]} ({Predecessor:} 14. e3) 14... Qe7 {[%emt 0:04:31]} 15. Nfg5 {[%emt 0:03:18]} h6 {[%emt 0:03:37]} 16. Nxe6 {[%emt 0:01:30]} Bxe6 {[%emt 0:02:02]} 17. e3 {[%emt 0:02:52]} Rad8 {[%emt 0:03:51]} 18. Qd2 {[%emt 0:12:17]} f5 {[%emt 0:01:25]} 19. exd4 {[%emt 0:02:12]} exd4 {[%emt 0:01:43]} 20. Rfe1 {[%emt 0:04:27]} fxe4 {[%emt 0:02:44]} 21. Rxe4 {[%emt 0:00:30]} Qd7 {[%emt 0:01:18]} 22. b4 {[%emt 0:11:37]} axb4 {[%emt 0:04:31]} 23. axb4 {[%emt 0:00:06]} Bf5 {[%emt 0:09:15]} 24. Rxe8+ {[%emt 0:02:10]} Rxe8 {[%emt 0:00:17]} ({Don't take} 24... Qxe8 25. Ra1 $19) 25. Qf4 {[%emt 0:04:07]} Nxb4 {[%emt 0:02:45]} 26. Bf1 {[%emt 0:03:36]} b6 {[%emt 0:12:09]} 27. Ba3 {[%emt 0:03:10]} Nc2 {[%emt 0:02:29]} 28. Bb2 {[%emt 0:04:19]} Re1 {[%emt 0:02:05]} (28... Ne1 $142 29. Qc1 Nf3+ 30. Kh1 Bh3) 29. Qd2 {[%emt 0:02:01]} Rxd1 {[%emt 0:00:36]} 30. Qxd1 {[%emt 0:00:08]} Nb4 {[%emt 0:00:21]} 31. Qb3 {[%emt 0:01:12]} Nc6 {[%emt 0:00:59]} 32. Qa4 {[%emt 0:00:56]} Ne5 {[%emt 0:00:27]} 33. Qa8+ {[%emt 0:00:17]} Kh7 {[%emt 0:00:22]} 34. Ba3 $19 {[%emt 0:01:06]} Bxd3 {[%emt 0:07:27]} 35. Bg2 {[%emt 0:01:09]} Bxc4 {[%emt 0:00:37]} 36. h5 {[%emt 0:00:32]} d3 {[%emt 0:02:17]} 0-1